bitfinex/quotes_BTCUSD_20241223
["timestamp","ask_amount","ask_price","bid_price","bid_amount"]
[1734986941635,8.54e-05,93248.0,93247.0,0.31847032]
[1734986942234,8.54e-05,93248.0,93245.0,0.216488]
[1734986942235,8.54e-05,93248.0,93245.0,0.002]
[1734986942424,8.54e-05,93248.0,93246.0,0.10398632]
[1734986942619,8.54e-05,93248.0,93247.0,0.30818263]
[1734986942912,8.54e-05,93248.0,93247.0,0.41216895]
[1734986943320,8.54e-05,93248.0,93247.0,0.58716895]
[1734986943633,8.54e-05,93248.0,93247.0,0.57657032]
[1734986943861,8.54e-05,93248.0,93247.0,0.55157032]
[1734986944068,8.54e-05,93248.0,93247.0,0.55657032]
[1734986944274,0.0010854,93248.0,93247.0,0.19208632]
[1734986944478,0.0010854,93248.0,93247.0,0.18708632]
[1734986944728,0.0020854,93248.0,93247.0,0.10505854]
[1734986944886,0.0020854,93248.0,93247.0,0.11005854]
[1734986945490,0.0020854,93248.0,93247.0,0.16396699]
[1734986945703,0.0020854,93248.0,93247.0,0.11005854]
[1734986945893,0.0020854,93248.0,93247.0,0.10898632]
[1734986946095,0.214497,93241.0,93240.0,4e-05]
[1734986947140,0.214497,93241.0,93240.0,0.00304]
[1734986947748,0.214497,93241.0,93240.0,4e-05]
[1734986947978,0.215497,93241.0,93240.0,4e-05]
[1734986948759,0.217497,93241.0,93240.0,4e-05]
[1734986949519,0.06765564,93241.0,93215.0,0.0002108]
[1734986949751,0.214555,93216.0,93215.0,0.0002108]
[1734986950562,0.54774132,93216.0,93215.0,0.0002108]
[1734986951562,0.54974132,93216.0,93215.0,0.0002108]
[1734986951800,0.54874132,93216.0,93215.0,0.0002108]
[1734986952124,0.372555,93216.0,93215.0,0.0002108]
[1734986952681,0.55670632,93216.0,93215.0,0.0002108]
[1734986952890,0.55570632,93216.0,93215.0,0.0002108]
[1734986953085,0.55770632,93216.0,93215.0,0.0002108]
[1734986953315,0.55070632,93216.0,93215.0,0.0002108]
[1734986953690,0.55770632,93216.0,93215.0,0.0002108]
[1734986954520,0.15,93214.0,93183.0,0.214629]
[1734986954722,0.214601,93197.0,93184.0,0.10398632]
[1734986954957,0.214578,93206.0,93189.0,0.214616]
[1734986955118,0.15,93214.0,93190.0,0.10398632]
[1734986955483,0.214554,93217.0,93190.0,0.10398632]
[1734986955598,0.214554,93217.0,93200.0,0.289691]
[1734986955799,0.007,93216.0,93202.0,0.214587]
[1734986956003,0.002,93214.0,93203.0,0.10398632]
[1734986956450,0.214562,93213.0,93203.0,0.10398632]
[1734986956659,0.214572,93209.0,93203.0,0.10398632]
[1734986956854,0.009,93216.0,93203.0,0.10398632]
[1734986957097,0.21456,93214.0,93203.0,0.10398632]
[1734986957496,0.22056,93214.0,93203.0,0.10398632]
[1734986957729,0.002,93213.0,93203.0,0.10398632]
[1734986957909,0.214564,93212.0,93203.0,0.10398632]
[1734986958697,0.002,93213.0,93205.0,0.21458]
[1734986959063,0.214539,93223.0,93206.0,0.10398632]
[1734986959287,0.214552,93218.0,93206.0,0.10398632]
[1734986959489,0.431122,93214.0,93206.0,0.08398632]
[1734986959617,0.216561,93214.0,93206.0,0.08398632]
[1734986959835,0.214561,93214.0,93206.0,0.08398632]
[1734986960038,0.214582,93205.0,93189.0,0.08]
[1734986960236,0.214598,93198.0,93188.0,0.00053106]
[1734986960465,0.214599,93197.0,93188.0,0.00053106]
[1734986960639,0.214609,93193.0,93188.0,0.00053106]
[1734986960821,0.429218,93193.0,93188.0,0.00053106]
[1734986961026,0.214611,93192.0,93188.0,0.00053106]
[1734986961224,0.0826,93204.0,93188.0,0.00053106]
[1734986961432,0.214615,93190.0,93188.0,0.00053106]
[1734986962075,0.00134137,93189.0,93188.0,0.00053106]
[1734986962275,0.00166596,93189.0,93188.0,0.00053106]
[1734986963091,0.00032459,93189.0,93188.0,0.00053106]
[1734986963291,0.21561,93193.0,93188.0,0.00053106]
[1734986963490,0.21461,93193.0,93188.0,0.00053106]
[1734986963743,0.42922,93193.0,93188.0,0.00053106]
[1734986963931,0.003,93189.0,93188.0,0.00053106]
[1734986964363,0.214617,93189.0,93188.0,0.00053106]
[1734986964515,0.214644,93178.0,93173.0,0.04288766]
[1734986965051,0.00353064,93189.0,93174.0,0.10398632]
[1734986965254,0.00053064,93189.0,93174.0,0.14013952]
[1734986965429,0.00053064,93189.0,93174.0,0.10398632]
[1734986965638,0.00053064,93189.0,93175.0,0.214649]
[1734986965838,0.214619,93188.0,93175.0,0.10398632]
[1734986966021,0.00134139,93187.0,93173.0,0.04288766]
[1734986966229,0.214647,93177.0,93173.0,0.04288766]
[1734986966437,0.214663,93169.0,93155.0,0.342993]
[1734986966635,0.00153064,93189.0,93171.0,0.214658]
[1734986966842,0.214619,93188.0,93171.0,0.10398632]
[1734986967062,0.214619,93188.0,93176.0,0.214646]
[1734986967260,0.21814964,93189.0,93176.0,0.214646]
[1734986967475,0.21514964,93189.0,93176.0,0.214646]
[1734986967612,0.214629,93184.0,93172.0,0.31864232]
[1734986968251,0.217619,93188.0,93174.0,0.214652]
[1734986968449,0.217619,93188.0,93175.0,0.10398632]
[1734986968656,0.214619,93188.0,93175.0,0.10398632]
[1734986968868,0.214624,93186.0,93175.0,0.10398632]
[1734986969285,0.01674789,93187.0,93176.0,0.214647]
[1734986969490,0.214619,93188.0,93175.0,0.10398632]
[1734986969912,0.42924,93188.0,93175.0,0.10398632]
[1734986970074,0.214619,93188.0,93173.0,0.0001708]
[1734986970276,0.00134136,93187.0,93173.0,0.0001708]
[1734986970531,0.214626,93185.0,93173.0,0.0001708]
[1734986971578,0.214652,93174.0,93173.0,0.0001708]
[1734986971804,0.214627,93185.0,93173.0,0.0001708]
[1734986972012,0.214639,93180.0,93173.0,0.0001708]
[1734986972223,0.214629,93184.0,93173.0,0.0001708]
[1734986972431,0.005,93185.0,93174.0,0.1254698]
[1734986972635,0.005,93185.0,93181.0,0.0775]
[1734986972841,0.005,93185.0,93174.0,0.10398632]
[1734986973045,0.214629,93184.0,93174.0,0.10398632]
[1734986973453,0.215629,93184.0,93174.0,0.10398632]
[1734986973662,0.214631,93183.0,93174.0,0.10398632]
[1734986973888,0.001,93184.0,93174.0,0.10398632]
[1734986974098,0.214622,93187.0,93174.0,0.10398632]
[1734986974271,0.214622,93187.0,93174.0,0.10598632]
[1734986974473,0.0956327,93235.0,93174.0,0.10598632]
[1734986974474,0.2146844,93197.0,93175.0,0.213649]
[1734986974678,0.2146844,93197.0,93175.0,0.31763532]
[1734986974877,0.214601,93196.0,93180.0,0.214637]
[1734986975130,8.54e-05,93197.0,93181.0,0.10398632]
[1734986975311,8.54e-05,93197.0,93190.0,0.214613]
[1734986975820,8.54e-05,93197.0,93181.0,0.10398632]
[1734986976018,8.54e-05,93197.0,93187.0,0.214621]
[1734986976684,8.54e-05,93197.0,93184.0,0.214628]
[1734986976859,8.54e-05,93197.0,93186.0,0.214624]
[1734986977072,8.54e-05,93197.0,93186.0,0.10398632]
[1734986977073,0.429202,93196.0,93186.0,0.10398632]
[1734986977247,8.54e-05,93197.0,93187.0,0.002]
[1734986977774,8.54e-05,93197.0,93187.0,0.004]
[1734986977953,8.54e-05,93197.0,93187.0,0.002]
[1734986978337,8.54e-05,93197.0,93188.0,0.214619]
[1734986978957,8.54e-05,93197.0,93187.0,0.002]
[1734986979181,0.02146784,93196.0,93169.0,0.292163]
[1734986979387,0.00134132,93195.0,93164.0,0.214673]
[1734986979588,0.214636,93181.0,93169.0,0.214662]
[1734986980515,0.214648,93176.0,93175.0,0.0001708]
[1734986980661,0.10407172,93197.0,93175.0,0.0001708]
[1734986980662,0.214641,93179.0,93175.0,0.0001708]
[1734986980862,0.0210623,93195.0,93175.0,0.0001708]
[1734986981183,0.214638,93180.0,93175.0,0.0001708]
[1734986981503,0.0339729,93194.0,93175.0,0.0001708]
[1734986981711,0.214643,93178.0,93175.0,0.0001708]
[1734986982147,0.214627,93185.0,93175.0,0.0001708]
[1734986982511,0.214617,93190.0,93175.0,0.0021708]
[1734986982687,8.54e-05,93197.0,93176.0,0.10398632]
[1734986983049,0.214601,93196.0,93183.0,0.214631]
[1734986983331,0.2146854,93197.0,93185.0,0.0769]
[1734986983639,0.2146854,93197.0,93185.0,0.18088632]
[1734986983858,0.001,93190.0,93185.0,0.18088632]
[1734986984060,0.2146854,93197.0,93185.0,0.18088632]
[1734986984299,0.001,93196.0,93186.0,0.214624]
[1734986984482,0.005,93196.0,93190.0,0.214613]
[1734986984686,0.005,93196.0,93191.0,0.10398632]
[1734986984990,0.005,93196.0,93192.0,0.21461]
[1734986985354,0.004,93196.0,93192.0,0.21461]
[1734986985556,8.54e-05,93197.0,93194.0,0.429212]
[1734986985792,8.54e-05,93197.0,93196.0,0.214601]
[1734986986140,8.54e-05,93197.0,93196.0,0.31858732]
[1734986986678,8.54e-05,93197.0,93196.0,0.41848732]
[1734986986901,8.54e-05,93197.0,93196.0,1.20898732]
[1734986987077,0.214498,93241.0,93229.0,0.214524]
[1734986987473,0.214495,93242.0,93229.0,0.214524]
[1734986987696,0.0046218,93243.0,93230.0,0.10398632]
[1734986987902,0.0046218,93243.0,93230.0,0.12207495]
[1734986988271,0.0046218,93243.0,93240.0,0.214499]
[1734986988470,0.0046218,93243.0,93230.0,0.12207495]
[1734986989118,0.0046218,93243.0,93236.0,0.214508]
[1734986989432,0.0046218,93243.0,93230.0,0.12207495]
[1734986989433,0.0046218,93243.0,93238.0,0.413008]
[1734986989635,0.0056218,93243.0,93241.0,0.214497]
[1734986989802,0.0056218,93243.0,93240.0,0.001]
[1734986989986,0.0056218,93243.0,93238.0,0.30249032]
[1734986989987,0.0046218,93243.0,93238.0,0.30249032]
[1734986992276,0.0056218,93243.0,93241.0,0.001]
[1734986992761,0.0046218,93243.0,93238.0,0.30249032]
[1734986992951,0.0056218,93243.0,93238.0,0.30349032]
[1734986993165,0.0057072,93243.0,93239.0,0.10398632]
[1734986993338,0.0047072,93243.0,93239.0,0.10398632]
[1734986993549,0.0047072,93243.0,93242.0,0.214495]
[1734986993755,0.0057072,93243.0,93242.0,0.31848132]
[1734986993958,0.0057072,93243.0,93242.0,0.10398632]
[1734986994136,0.0067072,93243.0,93242.0,0.10398632]
[1734986994341,0.0067072,93243.0,93238.0,0.004]
[1734986994549,0.10532684,93242.0,93212.0,0.17291863]
[1734986994733,0.214548,93219.0,93213.0,0.00015925]
[1734986995322,0.214559,93215.0,93213.0,0.00015925]
[1734986995537,0.001341,93214.0,93213.0,0.00015925]
[1734986995731,0.214559,93215.0,93213.0,0.00015925]
[1734986996277,0.00134106,93214.0,93213.0,0.00015925]
[1734986996489,0.04458647,93214.0,93213.0,0.00015925]
[1734986996910,0.00134106,93214.0,93213.0,0.00015925]
[1734986997462,0.00134106,93214.0,93213.0,0.00115925]
[1734986997957,0.215559,93215.0,93213.0,0.00115925]
[1734986998159,0.214559,93215.0,93213.0,0.00115925]
[1734986998573,0.215559,93215.0,93213.0,0.00115925]
[1734986998759,0.0430113,93214.0,93213.0,0.00015925]
[1734986999065,0.04435236,93214.0,93213.0,0.00015925]
[1734986999467,0.04435236,93214.0,93194.0,0.21376325]
[1734986999763,0.214564,93212.0,93196.0,0.429202]
[1734987000278,0.00115911,93214.0,93197.0,0.10398632]
[1734987000478,0.00015911,93214.0,93211.0,0.214565]
[1734987000679,0.00115911,93214.0,93213.0,0.214562]
[1734987000982,0.00115911,93214.0,93213.0,0.31854832]
[1734987001860,0.00015911,93214.0,93213.0,0.31854832]
[1734987002069,0.001,93212.0,93203.0,0.214585]
[1734987002267,0.001,93212.0,93205.0,0.21458]
[1734987002486,0.00015911,93214.0,93206.0,0.10398632]
[1734987002710,0.00115911,93214.0,93206.0,0.10398632]
[1734987002939,0.00215911,93214.0,93213.0,0.006]
[1734987003161,0.00115911,93214.0,93213.0,0.006]
[1734987003363,0.02282992,93214.0,93213.0,0.006]
[1734987003563,0.27815758,93214.0,93213.0,0.006]
[1734987003768,0.214608,93193.0,93192.0,0.0001708]
[1734987004567,0.1,93210.0,93174.0,0.09536023]
[1734987004781,0.214631,93184.0,93174.0,0.09536023]
[1734987005010,0.214631,93184.0,93173.0,0.0001708]
[1734987005212,0.10398632,93199.0,93173.0,0.0001708]
[1734987005386,0.214647,93177.0,93173.0,0.0001708]
[1734987006132,0.214629,93184.0,93173.0,0.00270144]
[1734987006343,8.54e-05,93197.0,93173.0,0.00270144]
[1734987006344,0.21461,93192.0,93173.0,0.00270144]
[1734987006576,8.54e-05,93197.0,93174.0,0.10398632]
[1734987006780,8.54e-05,93197.0,93176.0,0.214645]
[1734987006981,8.54e-05,93197.0,93180.0,0.214636]
[1734987007165,0.214601,93196.0,93177.0,0.10398632]
[1734987007366,0.214603,93195.0,93177.0,0.10398632]
[1734987007571,0.214608,93193.0,93177.0,0.31863032]
[1734987007770,0.02146884,93194.0,93177.0,0.31863032]
[1734987007771,0.02146884,93194.0,93177.0,0.10398632]
[1734987008001,8.54e-05,93197.0,93186.0,0.214622]
[1734987008210,8.54e-05,93197.0,93187.0,0.14988632]
[1734987008361,8.54e-05,93197.0,93194.0,0.214605]
[1734987008560,0.0020854,93197.0,93196.0,0.214601]
[1734987008771,0.0020854,93197.0,93196.0,0.33991705]
[1734987008974,8.54e-05,93197.0,93196.0,0.46291705]
[1734987009251,0.0020854,93197.0,93196.0,0.54081705]
[1734987009451,0.0047072,93243.0,93208.0,0.1]
[1734987009563,0.0047072,93243.0,93230.0,0.214521]
[1734987009772,0.214495,93242.0,93227.0,0.214529]
[1734987009967,0.214506,93238.0,93224.0,0.214534]
[1734987010171,0.214506,93238.0,93220.0,0.214544]
[1734987010172,0.214542,93222.0,93196.0,0.0779]
[1734987010433,0.00134085,93221.0,93197.0,0.10398632]
[1734987010572,0.1,93240.0,93197.0,0.10398632]
[1734987010573,0.214575,93208.0,93197.0,0.10398632]
[1734987011236,0.15,93228.0,93187.0,0.001]
[1734987011409,0.214605,93195.0,93182.0,0.214633]
[1734987011611,0.001,93197.0,93183.0,0.10398632]
[1734987011816,0.001,93197.0,93184.0,0.214629]
[1734987012263,0.214601,93196.0,93183.0,0.10398632]
[1734987012436,0.04436033,93195.0,93174.0,0.214652]
[1734987012634,0.257623,93195.0,93182.0,0.002]
[1734987012838,0.001,93197.0,93183.0,0.214631]
[1734987013390,0.001,93197.0,93183.0,0.429262]
[1734987013596,0.15,93216.0,93184.0,0.10398632]
[1734987013774,0.214536,93225.0,93185.0,0.01059863]
[1734987013775,0.00015911,93207.0,93185.0,0.01059863]
[1734987014012,0.00015911,93207.0,93186.0,0.10398632]
[1734987014216,0.00015911,93207.0,93171.0,0.214657]
[1734987014421,0.214624,93187.0,93183.0,0.001]
[1734987014622,0.15,93205.0,93183.0,0.001]
[1734987014823,0.214611,93192.0,93183.0,0.001]
[1734987014953,0.214605,93195.0,93179.0,0.429278]
[1734987015155,0.214596,93199.0,93197.0,0.004]
[1734987015360,0.214581,93205.0,93197.0,0.004]
[1734987015573,0.214581,93205.0,93188.0,0.214619]
[1734987015775,0.214592,93201.0,93188.0,0.214619]
[1734987016071,0.214606,93194.0,93180.0,0.214636]
[1734987016273,0.009,93205.0,93181.0,0.10398632]
[1734987016274,0.002,93199.0,93181.0,0.10398632]
[1734987016495,0.002,93199.0,93187.0,0.21462]
[1734987017216,0.216596,93199.0,93184.0,0.214629]
[1734987017436,0.216596,93199.0,93185.0,0.10398632]
[1734987017731,0.429192,93198.0,93183.0,0.0001708]
[1734987017907,0.214596,93198.0,93184.0,0.214629]
[1734987018111,0.002,93199.0,93183.0,0.0001708]
[1734987018291,0.214625,93186.0,93183.0,0.0001708]
[1734987018477,0.214629,93184.0,93183.0,0.0001708]
[1734987019622,0.214646,93177.0,93163.0,0.2569916]
[1734987019827,0.214657,93172.0,93164.0,0.10398632]
[1734987020412,0.214639,93180.0,93164.0,0.10398632]
[1734987020590,0.214641,93179.0,93165.0,0.214672]
[1734987020782,0.214642,93178.0,93167.0,0.214668]
[1734987020987,0.0214639,93179.0,93168.0,0.10398632]
[1734987021227,0.15,93201.0,93169.0,0.214663]
[1734987021355,0.001,93184.0,93175.0,0.214647]
[1734987021562,0.001,93184.0,93179.0,0.429279]
[1734987021763,0.001,93184.0,93181.0,0.078]
[1734987021970,0.001,93184.0,93183.0,0.214631]
[1734987022169,0.214592,93200.0,93183.0,0.31861732]
[1734987022371,0.214602,93196.0,93184.0,0.10398632]
[1734987022641,0.0214602,93195.0,93185.0,0.214626]
[1734987022850,0.0213416,93206.0,93185.0,0.10398632]
[1734987023059,8.54e-05,93214.0,93197.0,0.214597]
[1734987023261,8.54e-05,93214.0,93204.0,0.214581]
[1734987023674,0.2146464,93214.0,93201.0,0.214588]
[1734987023802,0.2146464,93214.0,93201.0,0.429177]
[1734987024204,0.00024451,93214.0,93205.0,0.214579]
[1734987024406,0.00024451,93214.0,93205.0,0.19357899]
[1734987025208,0.00224451,93214.0,93205.0,0.19357899]
[1734987025813,0.00224451,93214.0,93205.0,0.19557899]
[1734987026013,0.214573,93209.0,93194.0,0.214605]
[1734987026215,0.214585,93203.0,93184.0,0.260928]
[1734987026464,0.214585,93203.0,93185.0,0.10398632]
[1734987026829,0.00024451,93214.0,93185.0,0.10398632]
[1734987027037,0.00224451,93214.0,93212.0,0.214564]
[1734987027237,0.00224451,93214.0,93213.0,0.10398632]
[1734987027478,0.00024451,93214.0,93213.0,0.10398632]
[1734987028392,0.00424451,93214.0,93213.0,0.10398632]
[1734987028750,0.00024451,93214.0,93213.0,0.10398632]
[1734987029098,0.00024451,93214.0,93213.0,0.10798632]
[1734987029529,0.00024451,93214.0,93213.0,0.08298631]
[1734987029712,0.00124451,93214.0,93213.0,0.007]
[1734987029955,0.02282386,93214.0,93213.0,0.007]
[1734987030340,0.12681018,93214.0,93213.0,0.007]
[1734987030546,0.12715126,93214.0,93213.0,0.001]
[1734987030745,0.10557191,93214.0,93213.0,0.001]
[1734987030980,0.10857191,93214.0,93213.0,0.001]
[1734987031286,0.00458562,93214.0,93185.0,0.0001708]
[1734987031396,0.214572,93209.0,93194.0,0.214605]
[1734987031805,0.00387499,93208.0,93194.0,0.214605]
[1734987032003,0.00387499,93208.0,93198.0,0.214596]
[1734987032252,0.00387499,93208.0,93187.0,0.214622]
[1734987032456,0.214585,93203.0,93188.0,0.10398632]
[1734987032666,0.214578,93206.0,93189.0,0.214617]
[1734987032867,0.00506003,93202.0,93194.0,0.001]
[1734987033100,0.214589,93201.0,93186.0,0.214624]
[1734987033281,0.22091403,93201.0,93187.0,0.10398632]
[1734987033427,0.00632503,93201.0,93185.0,0.0001708]
[1734987033817,0.214583,93204.0,93185.0,0.0001708]
[1734987033930,0.00632503,93200.0,93194.0,0.002]
[1734987034136,0.00024451,93214.0,93194.0,0.002]
[1734987034137,0.00158578,93214.0,93194.0,0.002]
[1734987034483,0.00632503,93199.0,93194.0,0.002]
[1734987034771,0.214594,93200.0,93194.0,0.001]
[1734987035013,0.00632503,93198.0,93195.0,0.214603]
[1734987035301,0.214569,93210.0,93191.0,0.214611]
[1734987035302,0.00134115,93209.0,93191.0,0.214611]
[1734987035538,0.00224451,93214.0,93206.0,0.214577]
[1734987035756,0.00506844,93208.0,93203.0,0.214583]
[1734987035970,0.00158565,93214.0,93185.0,0.0001708]
[1734987036195,0.001,93198.0,93186.0,0.1190034]
[1734987036403,0.002,93198.0,93197.0,0.296199]
[1734987036621,0.002,93198.0,93197.0,0.56888532]
[1734987036836,0.002,93198.0,93197.0,0.71888532]
[1734987037050,0.001,93198.0,93197.0,0.71888532]
[1734987037266,0.001,93198.0,93197.0,0.78205335]
[1734987037482,0.00024451,93214.0,93213.0,0.214562]
[1734987037671,0.00024451,93214.0,93213.0,0.31854832]
[1734987038863,0.00124451,93214.0,93213.0,0.32354832]
[1734987039044,0.00124451,93214.0,93213.0,0.31854832]
[1734987039265,0.00124451,93214.0,93213.0,0.32154832]
[1734987039474,0.00224451,93214.0,93213.0,0.55564832]
[1734987039685,0.00124451,93214.0,93213.0,0.57364832]
[1734987040055,0.00224451,93214.0,93213.0,0.62454832]
[1734987040600,0.00224451,93214.0,93213.0,0.62154832]
[1734987041010,0.00224451,93214.0,93213.0,0.6474755]
[1734987041207,0.00024451,93214.0,93213.0,0.6424755]
[1734987041546,0.00124451,93214.0,93213.0,0.6444755]
[1734987041926,0.00124451,93214.0,93213.0,0.6484755]
[1734987042131,0.00024451,93214.0,93213.0,0.6424755]
[1734987042330,0.00024451,93214.0,93213.0,0.6384755]
[1734987042538,0.00024451,93214.0,93213.0,1.1801463]
[1734987042742,0.015,93225.0,93224.0,0.214537]
[1734987042960,0.0798,93276.0,93224.0,0.10398632]
[1734987043140,0.00015919,93243.0,93226.0,0.023]
[1734987043340,0.00015919,93243.0,93227.0,0.10398632]
[1734987043593,0.00015919,93243.0,93221.0,0.5405]
[1734987043802,0.003,93214.0,93213.0,0.0812708]
[1734987044005,0.003,93214.0,93213.0,0.18525712]
[1734987044391,0.00134078,93243.0,93213.0,0.18425712]
[1734987044598,0.00811408,93242.0,93227.0,0.001]
[1734987044751,0.214515,93234.0,93227.0,0.001]
[1734987044954,0.00404269,93242.0,93213.0,0.0001708]
[1734987045152,0.001,93214.0,93213.0,0.0061708]
[1734987045378,0.001,93214.0,93213.0,0.0031708]
[1734987046057,0.42911,93216.0,93213.0,0.0031708]
[1734987046258,0.00134115,93215.0,93213.0,0.0041708]
[1734987046469,0.21960489,93214.0,93213.0,0.0041708]
[1734987046802,0.21960489,93214.0,93213.0,0.0011708]
[1734987047003,0.00504489,93214.0,93213.0,0.0011708]
[1734987047208,0.00134115,93215.0,93213.0,0.0011708]
[1734987047451,0.21960489,93214.0,93213.0,0.0001708]
[1734987047653,0.24899451,93214.0,93213.0,0.0001708]
[1734987048074,0.214624,93186.0,93177.0,0.02]
[1734987048276,0.214617,93190.0,93185.0,0.00032991]
[1734987048610,0.00500356,93186.0,93185.0,0.00032991]
[1734987048818,0.214609,93193.0,93185.0,0.00032991]
[1734987048988,0.00500958,93186.0,93185.0,0.00032991]
[1734987049191,0.214609,93193.0,93185.0,0.00032991]
[1734987049399,0.00500958,93186.0,93185.0,0.00032991]
[1734987049600,0.00134147,93186.0,93185.0,0.00032991]
[1734987049810,0.00635105,93186.0,93185.0,0.00032991]
[1734987050017,0.00134147,93186.0,93185.0,0.00032991]
[1734987050229,0.00500958,93186.0,93185.0,0.00032991]
[1734987050437,0.214617,93189.0,93185.0,0.00032991]
[1734987050609,0.003,93190.0,93185.0,0.00032991]
[1734987050817,0.0040043,93189.0,93185.0,0.00032991]
[1734987051384,0.214609,93193.0,93185.0,0.00032991]
[1734987051611,0.001,93189.0,93185.0,0.00032991]
[1734987051843,0.00500808,93188.0,93185.0,0.00032991]
[1734987052457,0.214612,93191.0,93185.0,0.00032991]
[1734987052716,0.0040043,93190.0,93185.0,0.00032991]
[1734987052827,0.00500807,93190.0,93185.0,0.00032991]
[1734987053037,0.002,93188.0,93185.0,0.00032991]
[1734987053237,0.0040043,93187.0,93185.0,0.00032991]
[1734987053871,0.0040043,93187.0,93186.0,0.31861032]
[1734987054060,0.002,93188.0,93186.0,0.35879166]
[1734987054275,0.002,93188.0,93187.0,0.00107297]
[1734987054492,0.003,93188.0,93186.0,0.214624]
[1734987054691,0.001,93188.0,93186.0,0.214624]
[1734987054891,0.00134122,93204.0,93186.0,0.214624]
[1734987055091,0.004,93191.0,93186.0,0.214624]
[1734987055294,0.001,93188.0,93186.0,0.214624]
[1734987055791,0.21459,93201.0,93186.0,0.214624]
[1734987056209,0.00487729,93200.0,93186.0,0.214624]
[1734987056466,0.00487729,93200.0,93191.0,0.214612]
[1734987056668,0.002,93204.0,93191.0,0.214612]
[1734987056855,0.00461592,93203.0,93186.0,0.214624]
[1734987057070,0.21920092,93203.0,93186.0,0.214624]
[1734987057266,0.21920092,93203.0,93186.0,0.429248]
[1734987057508,0.00461592,93203.0,93186.0,0.214624]
[1734987057745,0.001,93201.0,93187.0,0.10398632]
[1734987057974,0.001,93201.0,93197.0,0.214597]
[1734987058229,0.21590512,93212.0,93197.0,0.214597]
[1734987058417,0.214542,93222.0,93198.0,0.31858232]
[1734987058418,0.005,93203.0,93198.0,0.31858232]
[1734987058622,0.002,93203.0,93200.0,0.214591]
[1734987058779,0.214542,93222.0,93201.0,0.10398632]
[1734987058983,0.214542,93222.0,93209.0,0.21457]
[1734987059367,0.214542,93222.0,93209.0,0.20857]
[1734987060339,0.214557,93216.0,93204.0,0.214583]
[1734987060467,0.02108051,93226.0,93180.0,0.0489]
[1734987060468,0.02146425,93213.0,93180.0,0.0489]
[1734987060684,0.00464935,93212.0,93195.0,0.214601]
[1734987060892,0.00464935,93212.0,93196.0,0.214601]
[1734987061111,0.00464935,93212.0,93206.0,0.214578]
[1734987061394,8.55e-05,93214.0,93206.0,0.214578]
[1734987061817,8.55e-05,93214.0,93211.0,0.214565]
[1734987062027,0.003,93212.0,93211.0,0.214565]
[1734987062250,0.003,93212.0,93211.0,0.44816385]
[1734987063280,0.007,93213.0,93211.0,0.44816385]
[1734987063462,8.55e-05,93214.0,93212.0,0.10398632]
[1734987063656,8.55e-05,93214.0,93213.0,0.214562]
[1734987063922,8.55e-05,93214.0,93213.0,0.34154832]
[1734987064127,8.55e-05,93214.0,93213.0,0.3664209]
[1734987064333,8.55e-05,93214.0,93213.0,1.2569209]
[1734987064563,0.09602712,93262.0,93228.0,0.5405]
[1734987064767,0.09602712,93262.0,93252.0,0.214472]
[1734987064986,0.00409502,93261.0,93252.0,0.214472]
[1734987066304,0.00024475,93262.0,93260.0,0.214452]
[1734987066550,0.00024475,93262.0,93260.0,0.31843832]
[1734987066791,0.00324475,93262.0,93260.0,0.31843832]
[1734987067269,0.006,93261.0,93243.0,0.214493]
[1734987067509,0.00024475,93262.0,93260.0,0.001]
[1734987068005,0.00024475,93262.0,93244.0,0.10398632]
[1734987068244,0.00024475,93262.0,93239.0,0.2904]
[1734987068245,0.00024475,93262.0,93261.0,0.31843732]
[1734987068484,0.00524475,93262.0,93261.0,0.31843732]
[1734987068730,0.00224475,93262.0,93261.0,0.31843732]
[1734987069979,0.00224475,93262.0,93255.0,0.214463]
[1734987070239,0.00024475,93262.0,93257.0,0.214461]
[1734987070484,0.00024475,93262.0,93260.0,0.001]
[1734987070976,0.214463,93257.0,93240.0,0.5405]
[1734987071219,0.214463,93257.0,93255.0,0.001]
[1734987071452,0.0013404,93256.0,93255.0,0.001]
[1734987071661,0.0013404,93256.0,93241.0,0.10398632]
[1734987071662,0.214465,93255.0,93241.0,0.10398632]
[1734987071867,0.25751632,93255.0,93241.0,0.10398632]
[1734987072083,0.04305132,93255.0,93241.0,0.10398632]
[1734987072290,0.00224475,93262.0,93241.0,0.10398632]
[1734987072490,0.003,93257.0,93241.0,0.10398632]
[1734987072923,0.003,93257.0,93250.0,0.214476]
[1734987073121,0.003,93257.0,93250.0,0.31846232]
[1734987073537,0.002,93256.0,93250.0,0.31846232]
[1734987073953,0.004,93255.0,93250.0,0.31846232]
[1734987074157,0.002,93256.0,93250.0,0.10398632]
[1734987074562,0.00024475,93262.0,93250.0,0.10398632]
[1734987074788,0.00024475,93262.0,93250.0,0.10498632]
[1734987074990,0.00331764,93261.0,93250.0,0.10498632]
[1734987075166,0.00414839,93261.0,93250.0,0.10498632]
[1734987075368,0.00414839,93261.0,93250.0,0.31946132]
[1734987075944,0.00024475,93262.0,93250.0,0.31946132]
[1734987076350,0.00024475,93262.0,93250.0,0.31846132]
[1734987076953,0.00024475,93262.0,93256.0,0.214463]
[1734987077187,0.004,93261.0,93251.0,0.214474]
[1734987077383,0.00024475,93262.0,93252.0,0.10398632]
[1734987077600,0.00024475,93262.0,93259.0,0.214456]
[1734987077808,0.00124475,93262.0,93261.0,0.214451]
[1734987078009,0.00024475,93262.0,93261.0,0.31843732]
[1734987079573,0.00024475,93262.0,93261.0,0.29743731]
[1734987079793,0.00024475,93262.0,93244.0,0.214491]
[1734987080004,0.00024475,93262.0,93247.0,0.214482]
[1734987080449,0.00024475,93262.0,93248.0,0.10398632]
[1734987080650,0.00024475,93262.0,93255.0,0.214464]
[1734987080855,0.00024475,93262.0,93256.0,0.10398632]
[1734987081839,0.00024475,93262.0,93247.0,0.214482]
[1734987081840,0.00324475,93262.0,93247.0,0.214482]
[1734987082026,0.00293554,93261.0,93249.0,0.214479]
[1734987082242,0.214453,93261.0,93250.0,0.10398632]
[1734987082447,0.21946373,93260.0,93224.0,0.5405]
[1734987082652,0.21812342,93260.0,93233.0,0.31850132]
[1734987082830,0.0013405,93259.0,93237.0,0.214505]
[1734987083037,0.0036463,93258.0,93256.0,0.001]
[1734987083245,0.00024475,93262.0,93256.0,0.001]
[1734987083456,0.00291413,93261.0,93247.0,0.214482]
[1734987083689,0.002,93260.0,93247.0,0.214482]